bitfinex/quotes_ETHUSD_20240902
["timestamp","ask_amount","ask_price","bid_price","bid_amount"]
[1725255692395,0.09619524,2462.5,2462.3,2.84275]
[1725255692606,2.84175,2463.3,2462.7,2.84239]
[1725255692808,2.3809,2463.4,2462.4,2.5424146]
[1725255692809,2.84206,2463.0,2462.4,5.30394]
[1725255692955,2.84203,2463.1,2462.4,5.30394]
[1725255693301,2.84203,2463.1,2462.4,2.4612]
[1725255693302,2.8422,2462.9,2462.4,2.4612]
[1725255694157,2.84195,2463.1,2462.4,5.30392]
[1725255694361,2.84195,2463.1,2462.5,2.8426]
[1725255694554,2.84175,2463.3,2462.7,2.84238]
[1725255694783,2.84175,2463.3,2462.5,5.76637346]
[1725255694784,0.822265,2463.2,2462.5,5.76637346]
[1725255694982,3.664095,2463.2,2462.5,2.92377346]
[1725255695191,3.4925345,2463.1,2462.5,0.08121346]
[1725255695389,2.84207,2463.0,2462.5,0.08121346]
[1725255695763,2.84195,2463.1,2462.5,0.08121346]
[1725255696085,0.822265,2463.2,2462.4,2.4612]
[1725255696086,5.68443,2462.9,2462.4,2.4612]
[1725255696397,2.8423,2462.8,2462.2,9.9012]
[1725255696586,3.44738915,2462.8,2462.2,9.9012]
[1725255696990,0.60508915,2462.8,2462.2,10.28298]
[1725255697199,5.68405,2463.1,2462.4,2.84266]
[1725255697406,5.22268,2463.3,2462.6,2.84251]
[1725255697628,3.4223592,2463.3,2462.6,2.84251]
[1725255697907,3.4223592,2463.3,2462.6,2.84244]
[1725255698404,0.5805792,2463.3,2462.7,0.08120693]
[1725255698622,5.68242,2463.8,2463.1,2.84185]
[1725255698904,5.68242,2463.8,2463.1,2.92303912]
[1725255698905,2.84119,2463.8,2463.1,2.92303912]
[1725255699260,2.84094,2464.0,2463.1,2.92303912]
[1725255699261,2.84094,2464.0,2463.4,2.8416]
[1725255699458,2.84094,2464.0,2463.3,2.8416]
[1725255699689,3.34380667,2464.0,2463.3,2.8416]
[1725255700104,6.18480667,2464.0,2463.3,2.8416]
[1725255700305,2.84106,2463.9,2463.3,2.8416]
[1725255700469,0.61848667,2463.8,2463.3,2.8416]
[1725255700661,3.45963667,2463.8,2463.3,2.8416]
[1725255701110,3.45963667,2463.8,2463.4,2.3615]
[1725255701111,0.61848667,2463.8,2463.4,2.3615]
[1725255701404,2.84094,2464.0,2463.4,2.3615]
[1725255702405,2.84094,2464.0,2463.4,5.20305]
[1725255702589,2.84094,2464.0,2463.4,2.3615]
[1725255702797,5.68193,2464.0,2463.4,2.3615]
[1725255703004,2.84094,2464.0,2463.4,2.3615]
[1725255703379,0.32658169,2463.9,2463.4,2.3615]
[1725255704232,3.16768169,2463.9,2463.4,2.3615]
[1725255704519,2.84114,2463.8,2463.4,2.3615]
[1725255704705,2.84126,2463.7,2463.1,5.2319]
[1725255704876,2.84139,2463.6,2463.1,2.39]
[1725255705080,5.68285,2463.6,2463.1,2.39]
[1725255705403,2.84139,2463.6,2463.1,2.39]
[1725255705787,0.31677217,2463.7,2463.2,2.84182]
[1725255706714,5.68194,2464.0,2463.4,2.84156]
[1725255706873,2.84103,2463.9,2463.2,5.68355]
[1725255707073,2.84115,2463.8,2463.2,2.84173]
[1725255707389,2.93214719,2463.8,2463.1,2.39]
[1725255707733,2.84138,2463.6,2463.1,2.39]
[1725255707896,0.09105775,2463.7,2463.1,2.39]
[1725255708081,0.09096202,2463.5,2463.1,5.23194]
[1725255708424,0.29321472,2463.7,2463.1,2.39]
[1725255708623,0.09090503,2463.4,2463.1,2.39]
[1725255708784,0.29321472,2463.7,2463.1,2.39]
[1725255709120,2.93242721,2463.6,2463.1,2.39]
[1725255709273,0.09103721,2463.6,2463.1,2.39]
[1725255709474,0.09103721,2463.6,2463.2,2.84182]
[1725255710226,0.09103721,2463.6,2463.2,2.84175]
[1725255710791,0.09103721,2463.6,2463.2,5.68349]
[1725255710989,0.09103721,2463.6,2463.2,2.84174]
[1725255711195,0.09103721,2463.6,2463.3,2.84171]
[1725255711828,2.84104,2463.9,2463.3,2.84171]
[1725255712032,0.09089789,2463.5,2463.3,2.84171]
[1725255712324,3.45172169,2463.9,2463.3,2.84171]
[1725255712325,0.09089204,2463.4,2463.3,2.84171]
[1725255712524,3.45171169,2463.9,2463.3,2.84171]
[1725255712818,0.09093805,2463.4,2463.2,2.84173]
[1725255713037,2.84115,2463.8,2463.1,2.39]
[1725255713331,2.93236739,2463.7,2463.1,5.23185]
[1725255713477,0.57735174,2463.6,2463.1,5.23185]
[1725255713832,0.66844506,2463.6,2463.1,5.23185]
[1725255714137,0.66844506,2463.6,2463.2,2.84181]
[1725255714434,0.09109332,2463.6,2463.2,2.84181]
[1725255714720,2.84115,2463.8,2463.2,5.68362]
[1725255714922,0.09101199,2463.5,2463.2,2.84181]
[1725255715092,5.68236,2463.8,2463.2,2.84176]
[1725255715298,0.09099715,2463.4,2463.2,2.84176]
[1725255715509,0.284115,2463.7,2463.2,2.84176]
[1725255715713,0.09094016,2463.3,2463.2,2.84176]
[1725255715919,2.84115,2463.8,2463.3,2.84168]
[1725255716424,2.84115,2463.8,2463.3,5.68336]
[1725255716622,5.68195,2464.0,2463.3,5.68329]
[1725255716829,5.84104,2463.9,2463.3,5.68325]
[1725255717149,3.0,2463.9,2463.5,2.84147]
[1725255718128,4.54973251,2464.4,2463.6,2.381]
[1725255718312,4.45977091,2464.5,2463.6,2.381]
[1725255718313,2.84035,2464.5,2464.0,2.8409]
[1725255718498,2.84035,2464.5,2463.8,5.68217]
[1725255718696,0.568563,2464.4,2463.9,2.84095]
[1725255719209,0.568563,2464.4,2464.0,2.8409]
[1725255719535,0.568563,2464.4,2464.0,5.3237]
[1725255719887,0.568563,2464.4,2464.0,2.4828]
[1725255720203,0.3568563,2464.3,2464.0,2.4828]
[1725255720401,0.3568563,2464.3,2463.7,2.3089]
[1725255720603,0.3568563,2464.3,2463.2,10.28174]
[1725255720604,2.84111,2463.9,2463.2,10.28174]
[1725255720812,2.84132,2463.7,2463.2,2.3089]
[1725255722001,2.84152,2463.5,2462.9,2.3437]
[1725255722230,2.84167,2463.4,2462.9,2.3437]
[1725255722532,2.93315504,2463.4,2462.9,2.3437]
[1725255722914,0.09148504,2463.4,2462.9,2.3437]
[1725255723117,0.09148504,2463.4,2463.0,2.84204]
[1725255723428,2.84139,2463.6,2463.0,2.84204]
[1725255723633,0.0907668,2463.3,2463.2,2.84183]
[1725255723825,0.568266,2463.6,2463.2,2.84183]
[1725255724017,0.09080642,2463.3,2463.0,2.84198]
[1725255724201,2.84148,2463.5,2463.0,2.84198]
[1725255724399,0.09074538,2463.2,2463.0,2.84198]
[1725255724601,3.125521,2463.6,2463.0,2.84198]
[1725255724822,0.0907674,2463.1,2463.0,2.84198]
[1725255725021,0.0907674,2463.1,2462.9,2.3437]
[1725255725022,2.84173,2463.3,2462.9,2.3437]
[1725255725201,0.09076231,2463.1,2462.9,2.3437]
[1725255725409,0.3125621,2463.4,2462.9,2.3437]
[1725255725611,0.09050343,2463.0,2462.9,2.3437]
[1725255725810,3.1542521,2463.4,2462.9,2.3437]
[1725255726029,0.09049497,2463.0,2462.9,2.3437]
[1725255726232,2.84172,2463.3,2462.6,5.22381]
[1725255726437,2.84172,2463.3,2462.6,6.03037]
[1725255726595,0.0904465,2463.0,2462.6,6.03037]
[1725255726800,2.84172,2463.3,2462.6,8.87281]
[1725255727000,0.09035817,2462.9,2462.6,6.03037]
[1725255727191,2.84183,2463.2,2462.6,6.03037]
[1725255727403,0.0903359,2462.8,2462.6,5.22372]
[1725255727603,2.84183,2463.2,2462.6,5.22372]
[1725255727834,0.09029711,2462.7,2462.6,5.22372]
[1725255728032,2.84183,2463.2,2462.6,5.22372]
[1725255728239,0.09029711,2462.7,2462.6,2.3813]
[1725255728440,2.84202,2463.1,2462.6,2.3813]
[1725255728641,0.09029711,2462.7,2462.6,2.3813]
[1725255728944,0.09029711,2462.7,2462.2,5.68584]
[1725255729096,2.84206,2463.0,2462.3,2.256]
[1725255729097,2.84227,2462.9,2462.3,2.256]
[1725255729297,0.09022528,2462.6,2462.3,2.256]
[1725255729601,2.84229,2462.8,2462.3,2.256]
[1725255730147,0.08990762,2462.7,2462.3,2.256]
[1725255730297,2.84229,2462.8,2462.3,2.256]
[1725255730499,2.93243882,2462.6,2462.0,5.19858]
[1725255730708,2.84271,2462.5,2462.0,2.3554]
[1725255730907,2.84278,2462.4,2461.8,2.84336]
[1725255731125,2.93236642,2462.4,2461.8,2.84336]
[1725255732253,2.8432,2462.1,2461.7,2.3617]
[1725255732545,2.8432,2462.1,2461.4,10.28385]
[1725255732546,2.84322,2462.0,2461.4,7.44]
[1725255732711,3.21618179,2462.0,2461.4,7.44]
[1725255732916,2.93185979,2462.0,2461.4,7.44]
[1725255733120,2.93185979,2462.0,2461.5,2.84375]
[1725255733330,0.08863979,2462.0,2461.5,2.8437]
[1725255733555,2.84307,2462.2,2461.5,2.8437]
[1725255733842,0.08852604,2461.9,2461.5,2.8437]
[1725255734142,0.08852027,2461.8,2461.5,5.68742]
[1725255734348,2.8431,2462.1,2461.5,2.8437]
[1725255734550,2.8431,2462.1,2461.4,7.44]
[1725255734551,0.08846492,2461.7,2461.4,7.44]
[1725255734842,2.84321,2462.0,2461.4,10.36511533]
[1725255735147,2.93167735,2461.9,2461.4,7.44]
[1725255735306,0.08831735,2461.9,2461.4,7.44]
[1725255735501,5.84269,2462.5,2461.7,2.279]
[1725255735749,0.08819714,2461.8,2461.7,5.12246]
[1725255735900,2.84284,2462.4,2461.7,5.12246]
[1725255735901,3.0,2462.3,2461.7,5.12246]
[1725255736102,3.0,2462.3,2461.8,2.84337]
[1725255736350,3.0,2462.4,2461.8,2.84337]
[1725255736723,2.84287,2462.3,2461.7,2.279]
[1725255736963,2.84321,2462.0,2461.4,12.63688]
[1725255737174,2.84321,2462.0,2461.4,2.353]
[1725255737324,0.08772614,2461.9,2461.4,2.353]
[1725255738068,2.93107614,2461.9,2461.4,2.353]
[1725255738657,2.84344,2461.8,2461.4,2.353]
[1725255738858,2.84344,2461.8,2461.2,2.2905]
[1725255739032,0.08748052,2461.7,2461.2,2.2905]
[1725255739381,2.84335,2461.9,2461.2,5.13463]
[1725255739544,0.08744169,2461.6,2461.2,5.13463]
[1725255739721,2.84346,2461.8,2461.2,2.2905]
[1725255739922,0.08740285,2461.5,2461.2,2.2905]
[1725255740173,2.8437,2461.6,2461.1,2.84418]
[1725255740468,0.08736402,2461.4,2461.0,7.44]
[1725255740769,3.412556,2461.5,2461.0,7.44]
[1725255740928,0.08701355,2461.3,2461.0,7.44]
[1725255741130,0.08701355,2461.3,2460.9,5.26009]
[1725255741131,5.68771,2461.5,2460.9,5.26009]
[1725255741477,0.08697471,2461.2,2460.9,5.26009]
[1725255741796,2.84339,2461.9,2461.0,0.08126501]
[1725255742070,5.84349,2461.8,2461.1,2.84415]
[1725255742229,2.84368,2461.6,2461.1,2.84415]
[1725255742746,6.427829,2461.8,2461.1,2.84415]
[1725255743066,5.84349,2461.8,2461.1,2.84415]
[1725255743423,5.84347,2461.8,2461.1,2.84415]
[1725255743653,5.84347,2461.8,2461.0,2.84425]
[1725255743654,2.84356,2461.7,2461.0,2.84425]
[1725255743867,5.84347,2461.8,2461.0,2.84425]
[1725255744064,2.84369,2461.6,2461.0,2.84425]
[1725255745284,2.84382,2461.5,2460.9,2.4157]
[1725255745596,2.84391,2461.4,2460.8,2.84451]
[1725255745887,5.29504,2461.6,2460.9,2.84447]
[1725255745888,0.3428037,2461.5,2460.9,2.84447]
[1725255746093,0.584347,2461.7,2461.1,2.4727]
[1725255746248,2.84368,2461.6,2461.1,2.4727]
[1725255746672,0.584347,2461.7,2461.1,2.4727]
[1725255746897,0.584347,2461.7,2461.2,2.84404]
[1725255747405,3.93015367,2462.2,2461.5,2.84378]
[1725255747548,3.427287,2462.2,2461.6,2.84367]
[1725255747752,0.62289537,2462.1,2461.6,2.84367]
[1725255748102,0.62289537,2462.1,2461.5,5.33882]
[1725255748255,3.46606537,2462.1,2461.5,5.33882]
[1725255748455,3.46606537,2462.1,2461.5,8.18254]
[1725255748670,0.62289537,2462.1,2461.5,5.33882]
[1725255749001,3.62289537,2462.1,2461.6,2.84365]
[1725255749303,0.34658954,2462.0,2461.5,5.33882]
[1725255749470,3.34658954,2462.0,2461.5,5.33882]
[1725255749792,6.18981954,2462.0,2461.3,2.84395]
[1725255749997,3.52462749,2461.9,2461.3,5.6879]
[1725255750168,3.52462749,2461.9,2461.3,2.84395]
[1725255750373,3.0,2461.8,2461.3,2.84395]
[1725255750796,7.1149547,2461.8,2461.2,2.4133]
[1725255751089,3.0,2461.8,2461.3,2.84395]
[1725255751300,5.84349,2461.8,2461.2,2.4133]
[1725255751512,2.84358,2461.7,2461.1,2.84417]
[1725255751779,8.875039,2461.8,2461.1,2.84417]
[1725255751899,6.427839,2461.8,2461.1,2.84417]
[1725255752298,2.93073656,2461.7,2461.1,2.84417]
[1725255752495,0.08716656,2461.7,2461.1,2.84417]
[1725255752694,2.93073656,2461.7,2461.1,3.66477914]
[1725255752947,2.93073656,2461.7,2461.1,6.50895914]
[1725255753135,0.08716656,2461.7,2461.1,3.66477914]
[1725255753523,0.08716656,2461.7,2461.3,2.84391]
[1725255753722,5.84333,2461.9,2461.3,2.84391]
[1725255754038,0.08700934,2461.6,2461.3,2.84391]
[1725255754204,3.805999,2461.9,2461.3,2.84391]
[1725255754415,3.0,2461.9,2461.6,2.84367]
[1725255754609,3.0,2462.1,2461.6,2.84367]
[1725255754813,5.3048,2462.4,2461.6,0.08124904]
[1725255755041,0.86142835,2462.3,2461.8,2.84337]
[1725255755237,0.86142835,2462.3,2461.2,7.52123827]
[1725255755238,2.84346,2461.8,2461.1,2.84423]
[1725255755540,2.4994,2461.7,2461.1,2.84418]
[1725255755900,2.84346,2461.8,2461.1,2.84418]
[1725255756211,3.0,2461.7,2461.4,2.84383]
[1725255756444,5.34268,2462.0,2461.2,2.3553]
[1725255756445,2.84352,2461.8,2461.2,2.3553]
[1725255756745,2.84352,2461.8,2461.2,5.19943]
[1725255756746,3.0,2461.7,2461.2,5.19943]
[1725255757923,3.0,2461.7,2461.2,2.3553]
[1725255758354,2.84368,2461.6,2461.2,2.3553]
[1725255759028,3.59302613,2461.8,2461.2,5.19943]
[1725255759249,5.84345,2461.8,2461.2,8.12473663]
[1725255759451,3.0,2461.8,2461.2,5.28060663]
[1725255759758,3.37483333,2462.4,2460.7,5.72911139]
[1725255759759,2.84294,2462.3,2461.4,2.4114]
[1725255760065,2.84294,2462.3,2461.7,2.84346]
[1725255760381,2.84294,2462.3,2461.8,2.4114]
[1725255760580,0.08724063,2462.2,2461.8,5.25483]
[1725255760896,2.84276,2462.4,2461.8,2.4114]
[1725255761189,2.84276,2462.4,2461.5,6.22516724]
[1725255761190,2.84301,2462.2,2461.5,6.22516724]
[1725255761338,3.0,2462.1,2461.5,8.63656724]
[1725255761533,3.0875056,2462.1,2461.5,8.63656724]
[1725255761737,3.0875056,2462.1,2461.7,2.84349]
[1725255761939,0.0875056,2462.1,2461.7,2.84349]
[1725255762178,3.0,2462.3,2461.8,0.08123593]
[1725255762391,0.08745027,2462.0,2461.9,2.2894]
[1725255762689,5.84278,2462.4,2461.9,2.2894]
[1725255762891,0.08762558,2462.0,2461.9,5.13273]
[1725255763107,2.84257,2462.6,2462.0,0.53770724]
[1725255763541,2.84257,2462.6,2462.0,3.38084724]
[1725255764085,2.84209,2463.0,2462.3,2.84279]
[1725255764378,3.37412333,2463.0,2462.3,3.57057622]
[1725255764547,2.8423,2462.8,2462.1,7.97545]
[1725255764752,6.21671333,2462.8,2462.1,5.1324]
[1725255764961,6.21671333,2462.8,2462.1,5.929967]
[1725255765169,3.0,2462.7,2462.1,5.929967]
[1725255765751,2.84259,2462.6,2462.1,2.2894]
[1725255765952,6.37444333,2462.7,2462.1,2.2894]
[1725255766151,5.68543,2462.5,2462.1,2.2894]
[1725255766382,4.04869733,2462.5,2462.1,2.2894]
[1725255766553,2.84283,2462.4,2462.1,2.2894]
[1725255766891,2.84283,2462.4,2461.8,2.3393]
[1725255767116,2.84288,2462.3,2461.8,2.3393]
[1725255767387,0.08804563,2462.3,2461.8,2.42053062]
[1725255767696,4.04869733,2462.5,2461.9,2.84332]
[1725255767838,0.08800683,2462.2,2461.9,2.84332]
[1725255768040,2.84286,2462.4,2461.8,2.3393]
[1725255768237,0.08796803,2462.1,2461.8,2.3393]
[1725255768489,2.84287,2462.3,2461.8,2.3393]
[1725255768640,0.08798048,2462.0,2461.8,5.18273]
[1725255768839,3.24772973,2462.4,2461.8,2.3393]
[1725255768840,3.24771973,2462.4,2461.8,2.3393]
[1725255769091,0.08794168,2461.9,2461.8,2.3393]
[1725255769310,3.24771973,2462.4,2461.8,2.3393]
[1725255769592,0.08794168,2461.9,2461.8,2.3393]
[1725255769909,2.84305,2462.2,2461.8,2.3393]
[1725255770247,0.08788991,2461.9,2461.8,2.3393]
[1725255770569,0.08788991,2461.9,2461.8,5.18274]
[1725255770741,5.68563,2462.4,2461.8,5.18274]
[1725255771085,0.08779203,2461.9,2461.8,2.3393]
[1725255771392,2.84288,2462.3,2461.8,2.3393]
[1725255771544,0.08752852,2461.9,2461.8,2.3393]
[1725255771764,2.84288,2462.3,2461.8,2.3393]
[1725255771970,0.08767674,2461.9,2461.8,2.3393]
[1725255772211,3.411448,2462.3,2461.8,2.3393]
[1725255772867,0.08813926,2462.2,2461.8,2.3393]
[1725255773065,5.68566,2462.4,2461.8,2.3393]
[1725255773066,2.8428,2462.4,2461.8,2.3393]
[1725255773304,2.8428,2462.4,2461.8,5.18268]
[1725255773488,0.08805763,2462.3,2461.8,5.18268]
[1725255773796,0.08805763,2462.3,2461.9,2.8433]
[1725255774009,5.84266,2462.5,2461.9,2.8433]
[1725255774211,0.08797586,2462.2,2461.9,2.8433]
[1725255774445,5.84266,2462.5,2461.9,2.8433]
[1725255774745,7.13020625,2462.5,2461.9,2.8433]
[1725255775047,2.9308135,2462.4,2461.8,2.3393]
[1725255775617,2.84305,2462.2,2461.8,2.3393]
[1725255776029,0.08820346,2462.1,2461.8,2.3393]
[1725255776351,2.93136346,2462.1,2461.8,2.3393]
[1725255777044,2.84322,2462.0,2461.6,7.44]
[1725255777246,2.84342,2461.9,2461.6,7.44]
[1725255777411,2.93141253,2461.9,2461.6,7.44]
[1725255777612,2.84346,2461.8,2461.6,7.44]
[1725255777800,2.84346,2461.8,2461.5,2.4428]
[1725255778005,0.08792396,2461.7,2461.5,2.4428]
[1725255778202,2.84346,2461.8,2461.5,2.4428]
[1725255778448,0.08768372,2461.6,2461.5,2.4428]
[1725255778653,2.84346,2461.8,2461.5,2.4428]
[1725255778817,0.08771666,2461.6,2461.5,2.4428]
[1725255779006,2.84346,2461.8,2461.5,2.4428]
[1725255779654,2.84324,2462.0,2461.5,2.4428]
[1725255779655,0.08775548,2461.7,2461.5,2.4428]
[1725255779949,3.35623139,2462.0,2461.5,2.4428]
[1725255780144,0.08774403,2461.6,2461.5,2.4428]
[1725255780301,3.35623139,2462.0,2461.5,2.4428]
[1725255780656,0.57744135,2462.1,2461.5,2.4428]
[1725255780657,0.08786048,2461.9,2461.6,2.8436]
[1725255780955,2.8431,2462.1,2461.5,5.28652]
[1725255781099,0.08776486,2461.8,2461.5,8.943269]
[1725255781300,3.0,2462.2,2461.5,5.28651]
[1725255781543,0.0877942,2462.1,2461.7,2.84356]
[1725255781834,0.0877942,2462.1,2461.7,5.68704]
[1725255782036,0.0877942,2462.1,2461.8,2.4901]
[1725255782670,3.0,2462.3,2461.8,2.4901]
[1725255782975,4.16822888,2462.3,2461.8,5.33353]
[1725255783180,0.08779987,2462.2,2461.8,5.33353]
[1725255783367,4.16822888,2462.3,2461.8,5.33353]
[1725255783553,0.0876952,2462.1,2461.8,5.33353]
[1725255783748,4.16822888,2462.3,2461.8,5.33353]
[1725255783983,0.08765638,2462.0,2461.8,5.33353]
[1725255784138,4.16822888,2462.3,2461.8,5.33353]
[1725255784334,0.08761757,2461.9,2461.8,5.33353]
[1725255784537,1.70923251,2462.6,2461.8,3.307801]
[1725255784839,1.70923251,2462.8,2461.9,2.4647]
[1725255785041,1.70923251,2462.8,2461.8,3.78335196]
[1725255785042,1.70923251,2462.8,2462.0,2.54592504]
[1725255785261,0.66822326,2462.7,2462.0,2.54592504]
[1725255785466,0.66822326,2462.7,2462.0,5.38908504]
[1725255785686,0.66822326,2462.7,2462.2,2.84292]
[1725255788482,3.51063326,2462.7,2462.0,8.15099]
[1725255788634,3.0,2462.6,2462.1,2.84309]
[1725255788833,6.96456658,2462.6,2462.0,5.30782]
[1725255789051,2.84264,2462.5,2462.0,2.4647]
[1725255790067,4.12198658,2462.6,2462.0,2.4647]
[1725255790583,2.84265,2462.5,2462.0,2.4647]
[1725255791473,3.0,2462.6,2462.3,2.4091]
[1725255791654,3.0,2462.8,2462.3,5.25189]
[1725255791855,0.75513125,2462.8,2462.3,2.4091]
[1725255792091,6.43985125,2462.8,2462.3,2.4091]
[1725255792296,3.0,2462.7,2462.3,2.4091]
[1725255793994,3.0,2462.7,2462.3,5.25195]
[1725255794208,3.75513125,2462.8,2462.3,8.0948]
[1725255794365,3.75513125,2462.8,2462.3,5.25195]
[1725255794568,2.12976002,2463.1,2462.0,7.44]
[1725255794569,1.70923251,2463.1,2462.9,2.84217]
[1725255794885,3.32705247,2463.6,2462.9,2.84217]
[1725255794886,4.55066251,2463.6,2463.0,2.3797]
[1725255795057,0.33270525,2463.5,2463.0,2.3797]
[1725255795263,3.17418525,2463.5,2463.0,2.3797]
[1725255795558,0.33270525,2463.5,2463.0,5.22175]
[1725255795791,1.70923251,2463.7,2463.2,2.84182]
[1725255795998,1.70923251,2463.9,2463.3,2.84171]
[1725255796161,4.55018251,2464.0,2463.4,2.3203]
[1725255796356,1.02603305,2463.9,2463.4,2.3203]
[1725255796558,5.68193,2464.0,2463.4,2.3203]
[1725255796759,3.37298333,2464.0,2463.4,2.3203]
[1725255797001,2.84115,2463.8,2463.2,5.12452]
[1725255797195,2.84146,2463.6,2463.2,2.2827]
[1725255797431,0.53203333,2463.7,2462.7,2.84233]
[1725255797432,0.61897269,2463.7,2463.1,2.2879]
[1725255797699,0.08698645,2463.5,2463.4,2.8416]
[1725255797904,0.08690966,2463.6,2463.4,2.8416]
[1725255798250,5.08196584,2464.2,2463.4,2.8416]
[1725255798251,0.08729956,2463.5,2463.4,2.8416]
[1725255798559,2.84098,2464.0,2463.4,2.8416]
[1725255798851,3.0,2463.9,2463.5,2.84146]
[1725255799050,1.14556858,2464.0,2463.5,2.84146]
[1725255799339,3.5327,2464.1,2463.6,2.2879]
[1725255800135,3.5327,2464.1,2463.6,5.12918]
[1725255800347,3.0,2464.1,2463.7,2.84118]
[1725255800529,3.0,2464.3,2463.7,2.84118]
[1725255800751,6.37262333,2464.3,2463.7,2.84118]
[1725255801258,4.49583694,2464.3,2463.7,2.84117]
[1725255801648,7.33645694,2464.3,2463.7,2.84117]
[1725255802461,4.49583694,2464.3,2463.7,2.84117]
[1725255802762,7.33641694,2464.3,2463.7,2.84117]
[1725255803481,0.005,2464.6,2464.0,2.84083]
[1725255803635,0.005,2464.6,2464.1,2.326]
[1725255804172,2.84522,2464.6,2464.1,2.326]
[1725255804393,0.005,2464.6,2464.1,2.326]
[1725255804522,0.005,2464.6,2464.1,5.16676]
[1725255804725,0.005,2464.6,2464.1,2.326]
[1725255805559,0.005,2464.6,2464.1,5.16678]
[1725255805716,0.005,2464.6,2464.1,2.326]
[1725255805922,3.005,2464.6,2464.1,2.326]
[1725255806220,5.84524,2464.6,2464.1,2.326]
[1725255806621,0.53203333,2464.5,2464.1,2.326]
[1725255806873,2.84052,2464.4,2463.8,2.4899]
[1725255808779,5.68103,2464.4,2463.8,5.33099]
[1725255808953,2.84051,2464.4,2463.8,2.4899]
[1725255809678,2.84063,2464.3,2463.8,2.4899]
[1725255810045,2.84051,2464.4,2463.8,5.864138]
[1725255810435,5.68106,2464.4,2463.8,5.864138]
[1725255810996,2.84051,2464.4,2463.8,5.864138]
[1725255811140,8.6856,2464.6,2464.0,2.84086]
[1725255811481,6.71384,2464.6,2464.0,2.84086]
[1725255811690,2.84035,2464.5,2463.9,2.4449688]
[1725255811924,2.84063,2464.3,2463.9,2.3638]
[1725255812287,2.9291203,2464.2,2463.9,2.3638]
[1725255812791,5.7699003,2464.2,2463.9,2.3638]
[1725255812989,2.8409,2464.0,2463.9,2.3638]
[1725255813339,2.84104,2463.9,2463.5,2.3638]
[1725255813546,2.92941062,2463.8,2463.5,2.3638]
[1725255814392,2.84137,2463.6,2463.5,2.3638]
[1725255814551,2.84134,2463.7,2463.2,2.2558]
[1725255814880,0.08821171,2463.6,2463.2,2.9998]
[1725255815095,0.08821171,2463.6,2463.2,2.2558]
[1725255815297,2.84179,2463.3,2462.9,2.4112]
[1725255815639,0.08773285,2463.2,2462.9,2.4112]
[1725255815846,2.84179,2463.3,2462.9,2.4112]
[1725255816151,2.8416,2463.4,2462.9,2.4112]
[1725255816352,0.08738132,2463.2,2462.9,2.4112]
[1725255816592,2.84191,2463.2,2462.9,2.4112]
[1725255816912,2.84222,2462.9,2462.3,2.4896]
[1725255817112,2.84267,2462.5,2462.3,2.4896]
[1725255817406,0.08662574,2462.4,2462.3,2.4896]
[1725255817542,3.0,2462.8,2462.3,2.4896]
[1725255817742,0.08674217,2462.7,2462.3,2.4896]
[1725255817942,0.08674217,2462.7,2461.7,7.44]
[1725255817943,2.84267,2462.5,2462.0,2.3494]
[1725255818186,0.08635314,2462.4,2462.0,2.3494]
[1725255819177,0.08635314,2462.4,2462.0,2.58434]
[1725255819570,0.08635314,2462.4,2462.1,0.08122595]
[1725255819716,0.08635314,2462.4,2462.2,2.4946]
[1725255820048,3.0,2462.8,2462.2,2.4946]
[1725255820215,0.08613652,2462.3,2462.2,3.051855]
[1725255820397,2.84242,2462.7,2462.2,3.051855]
[1725255820597,0.08613652,2462.3,2462.2,5.96854302]
[1725255820813,3.0,2462.8,2462.2,5.96854302]
[1725255821031,3.0,2462.8,2462.3,0.47329846]
[1725255821565,3.0,2462.8,2462.3,3.31612846]
[1725255821851,2.84273,2462.5,2462.0,2.4453]
[1725255822040,2.84275,2462.4,2462.0,2.4453]
[1725255822610,2.84295,2462.3,2462.0,2.4453]
[1725255823429,2.84295,2462.3,2461.7,9.7793]
[1725255823629,2.84301,2462.2,2461.7,9.7793]
[1725255823968,2.84295,2462.3,2461.7,9.7793]
[1725255826563,5.4065,2462.6,2461.9,2.88442139]
[1725255826564,3.0,2462.6,2461.9,2.88442139]
[1725255826762,4.55396708,2463.2,2462.2,5.23961]
[1725255826763,2.84222,2462.9,2462.2,5.23961]
[1725255827020,5.68449,2462.9,2462.2,5.23961]
[1725255827176,0.0851762,2462.8,2462.2,5.23961]
[1725255827471,0.0851762,2462.8,2462.2,2.47791806]
[1725255827472,2.84242,2462.7,2462.2,2.47791806]
[1725255827866,0.0850945,2462.6,2462.2,2.47791806]
[1725255828171,2.84242,2462.7,2462.2,2.47791806]
[1725255828379,0.08531863,2462.5,2462.2,2.47791806]
[1725255828677,2.84242,2462.7,2462.2,2.47791806]
[1725255828884,0.08524266,2462.4,2462.2,2.47791806]
[1725255829043,2.84242,2462.7,2462.2,2.3967]
[1725255829245,0.08520385,2462.3,2462.2,2.3967]
[1725255829881,2.84254,2462.6,2462.2,2.3967]
[1725255830068,0.08522038,2462.3,2462.2,2.3967]
[1725255830402,0.08524101,2462.3,2462.2,2.3967]
[1725255830541,2.84254,2462.6,2462.2,2.3967]
[1725255830743,0.08531863,2462.5,2462.2,2.3967]
[1725255830948,5.84223,2462.9,2462.2,6.05600584]
[1725255831150,3.08543504,2462.8,2462.6,2.4561]
[1725255831644,0.08543504,2462.8,2462.6,2.4561]
[1725255831880,5.84214,2463.0,2462.6,2.4561]
[1725255832090,0.08537404,2462.7,2462.6,2.4561]
[1725255832295,3.0,2463.0,2462.6,2.4561]
[1725255832296,5.84209,2463.0,2462.6,2.4561]
[1725255832466,3.868408,2463.0,2462.6,2.4561]
[1725255832668,0.08545163,2462.9,2462.6,2.4561]
[1725255832866,0.08545163,2462.9,2462.6,5.2986]